lending/lending_fUSD_20240809
["ID","MTS","AMOUNT","RATE_DAILY","PERIOD"]
[334524407,1723173090306,-1516.34,0.00024285,5]
[334524408,1723173090316,-1516.34,0.00024285,5]
[334524409,1723173090325,-1516.34,0.00024285,5]
[334524410,1723173090334,-1516.34,0.00024285,5]
[334524411,1723173090344,-2137.84,0.00024285,5]
[334524412,1723173090354,-2137.84,0.00024285,5]
[334524413,1723173090364,-2137.84,0.00024285,5]
[334524414,1723173090374,-2137.84,0.00024285,5]
[334524415,1723173090383,-2137.99916027,0.00024285,5]
[334524416,1723173090393,-1719.92,0.00024285,5]
[334524417,1723173090403,-1719.92,0.00024285,5]
[334524418,1723173090412,-1075.16,0.00024285,5]
[334524419,1723173090422,-1075.16,0.00024285,5]
[334524420,1723173090431,-1719.92,0.00024285,5]
[334524421,1723173090442,-1075.16,0.00024285,5]
[334524422,1723173090452,-1719.92,0.00024285,5]
[334524423,1723173090463,-1075.16,0.00024285,5]
[334524424,1723173090472,-500.0,0.00024285,5]
[334524425,1723173090482,-495.17413057,0.00024285,5]
[334524426,1723173090491,-1408.24,0.00024285,5]
[334524427,1723173090502,-1408.24,0.00024285,5]
[334524428,1723173090511,-1408.24,0.00024285,5]
[334524429,1723173090521,-1408.24,0.00024285,5]
[334524430,1723173090531,-1408.37285757,0.00024285,5]
[334524431,1723173090540,-2561.56,0.00024285,2]
[334524432,1723173090550,-500.0,0.00024285,5]
[334524433,1723173090560,-500.0,0.00024285,5]
[334524434,1723173090569,-233.89130615,0.00024285,5]
[334524435,1723173090578,-2476.74,0.00024285,5]
[334524436,1723173090588,-2476.74,0.00024285,5]
[334524437,1723173090597,-2476.74,0.00024285,5]
[334524438,1723173090607,-2476.74,0.00024285,5]
[334524439,1723173090616,-2084.94,0.00024285,5]
[334524440,1723173090626,-2084.94,0.00024285,5]
[334524441,1723173090636,-2084.94,0.00024285,5]
[334524442,1723173090645,-2084.94,0.00024285,5]
[334524443,1723173090655,-500.0,0.00024285,5]
[334524444,1723173090666,-500.0,0.00024285,5]
[334524445,1723173090676,-500.0,0.00024285,5]
[334524446,1723173090687,-523.59927066,0.00024285,5]
[334524447,1723173090703,-1168.69,0.00024285,5]
[334524448,1723173090713,-1168.69,0.00024285,5]
[334524449,1723173090722,-1168.69,0.00024285,5]
[334524450,1723173090732,-1168.69,0.00024285,5]
[334524451,1723173090741,-913.05,0.00024285,5]
[334524452,1723173090751,-913.05,0.00024285,5]
[334524453,1723173090761,-913.05,0.00024285,5]
[334524454,1723173090771,-913.05,0.00024285,5]
[334524455,1723173090780,-1605.27,0.00024285,5]
[334524456,1723173090790,-1605.27,0.00024285,5]
[334524457,1723173090800,-1605.27,0.00024285,5]
[334524458,1723173090810,-1605.27,0.00024285,5]
[334524459,1723173090947,-1605.3101978,0.00024285,5]
[334524460,1723173090972,-500.0,0.00024285,5]
[334524461,1723173090982,-500.0,0.00024285,5]
[334524462,1723173090991,-500.0,0.00024285,5]
[334524463,1723173091001,-500.0,0.00024285,5]
[334524464,1723173091011,-1771.96,0.00024285,5]
[334524465,1723173091021,-1771.96,0.00024285,5]
[334524466,1723173091031,-1771.96,0.00024285,5]
[334524467,1723173091040,-1771.96,0.00024285,5]
[334524468,1723173091050,-2058.38,0.00024285,5]
[334524469,1723173091059,-2058.38,0.00024285,5]
[334524470,1723173091068,-2058.38,0.00024285,5]
[334524471,1723173091078,-2058.38,0.00024285,5]
[334524472,1723173091087,-2256.92,0.00024285,5]
[334524473,1723173091096,-2256.92,0.00024285,5]
[334524474,1723173091106,-2256.92,0.00024285,5]
[334524475,1723173091115,-2256.92,0.00024285,5]
[334524476,1723173091127,-2257.04,0.00024285,5]
[334524477,1723173091138,-500.0,0.00024285,5]
[334524478,1723173091147,-500.0,0.00024285,5]
[334524479,1723173091156,-500.0,0.00024285,5]
[334524480,1723173091166,-500.0,0.00024285,5]
[334524481,1723173091176,-500.0,0.00024285,5]
[334524482,1723173091185,-500.0,0.00024285,5]
[334524483,1723173091195,-500.0,0.00024285,5]
[334524484,1723173091204,-500.0,0.00024285,5]
[334524485,1723173091214,-1446.58,0.00024285,5]
[334524486,1723173091224,-1446.58,0.00024285,5]
[334524487,1723173091235,-1446.58,0.00024285,5]
[334524488,1723173091244,-1446.58,0.00024285,5]
[334524489,1723173091253,-738.8,0.00024285,5]
[334524490,1723173091263,-1010.29,0.00024285,5]
[334524491,1723173091271,-1010.29,0.00024285,5]
[334524492,1723173091281,-1010.29,0.00024285,5]
[334524493,1723173091290,-1010.29,0.00024285,5]
[334524494,1723173091300,-1010.3,0.00024285,5]
[334524495,1723173091309,-5908.06,0.00024285,5]
[334524496,1723173091319,-2016.95,0.00024285,5]
[334524497,1723173091329,-2283.75,0.00024285,5]
[334524498,1723173091339,-365.9929902,0.00024285,5]
[334524499,1723173091348,-2283.75,0.00024285,5]
[334524500,1723173091358,-2283.75,0.00024285,5]
[334524501,1723173091367,-2283.75,0.00024285,5]
[334524502,1723173091377,-555.7,0.00024285,5]
[334524503,1723173091386,-555.7,0.00024285,5]
[334524504,1723173091395,-555.7,0.00024285,5]
[334524505,1723173091404,-555.7,0.00024285,5]
[334524506,1723173091413,-2544.44,0.00024285,5]
[334524507,1723173091422,-2544.44,0.00024285,5]
[334524508,1723173091432,-2544.44,0.00024285,5]
[334524509,1723173091442,-2544.44,0.00024285,5]
[334524510,1723173091451,-2544.55753864,0.00024285,5]
[334524511,1723173091460,-587.54,0.00024285,5]
[334524512,1723173091469,-587.54,0.00024285,5]
[334524513,1723173091479,-587.54,0.00024285,5]
[334524514,1723173091488,-587.54,0.00024285,5]
[334524515,1723173091497,-1933.72,0.00024285,5]
[334524516,1723173091506,-1933.72,0.00024285,5]
[334524517,1723173091515,-1933.72,0.00024285,5]
[334524518,1723173091525,-1933.72,0.00024285,5]
[334524519,1723173091535,-1040.73,0.00024285,5]
[334524520,1723173091544,-1040.73,0.00024285,5]
[334524521,1723173091554,-1040.73,0.00024285,5]
[334524522,1723173091563,-1040.73,0.00024285,5]
[334524523,1723173091573,-1040.77214138,0.00024285,5]
[334524524,1723173091582,-500.0,0.00024285,5]
[334524525,1723173091592,-500.0,0.00024285,5]
[334524526,1723173091602,-538.08208956,0.00024285,5]
[334524527,1723173091611,-2360.3,0.00024285,5]
[334524528,1723173091620,-2360.3,0.00024285,5]
[334524529,1723173091629,-2360.3,0.00024285,5]
[334524530,1723173091639,-2360.3,0.00024285,5]
[334524531,1723173091648,-500.0,0.00024285,5]
[334524532,1723173091657,-500.0,0.00024285,5]
[334524533,1723173091667,-500.0,0.00024285,5]
[334524534,1723173091676,-500.0,0.00024285,5]
[334524535,1723173091685,-500.0,0.00024285,5]
[334524536,1723173091696,-634.45,0.00024285,5]
[334524537,1723173091705,-634.45,0.00024285,5]
[334524538,1723173091714,-634.45,0.00024285,5]
[334524539,1723173091723,-634.45,0.00024285,5]
[334524540,1723173091733,-500.0,0.00024285,5]
[334524541,1723173091742,-500.0,0.00024285,5]
[334524542,1723173091751,-511.88109868,0.00024285,5]
[334524543,1723173091761,-955.44,0.00024285,5]
[334524544,1723173091770,-955.44,0.00024285,5]
[334524545,1723173091779,-955.44,0.00024285,5]
[334524546,1723173091788,-955.44,0.00024285,5]
[334524547,1723173091798,-553.49,0.00024285,5]
[334524548,1723173091808,-500.0,0.00024285,5]
[334524549,1723173091817,-500.0,0.00024285,5]
[334524550,1723173091826,-500.0,0.00024285,5]
[334524551,1723173091835,-573.18204543,0.00024285,5]
[334524552,1723173091844,-151.502882,0.00024285,7]
[334524553,1723173091854,-849.58,0.00024285,5]
[334524554,1723173091863,-849.58,0.00024285,5]
[334524555,1723173091872,-849.58,0.00024285,5]
[334524556,1723173091882,-849.58,0.00024285,5]
[334524557,1723173091891,-500.0,0.00024285,5]
[334524558,1723173091901,-598.24,0.00024285,5]
[334524559,1723173091910,-598.24,0.00024285,5]
[334524560,1723173091920,-598.24,0.00024285,5]
[334524561,1723173091930,-598.24,0.00024285,5]
[334524562,1723173091939,-159.27259484,0.00024285,5]
[334524563,1723173091949,-2539.06,0.00024285,5]
[334524564,1723173091959,-762.01,0.00024285,5]
[334524565,1723173091969,-762.01,0.00024285,5]
[334524566,1723173091978,-762.01,0.00024285,5]
[334524567,1723173091988,-762.01,0.00024285,5]
[334524568,1723173091998,-1491.08,0.00024285,5]
[334524569,1723173092007,-1491.08,0.00024285,5]
[334524570,1723173092018,-1491.08,0.00024285,5]
[334524571,1723173092028,-1491.08,0.00024285,5]
[334524572,1723173092037,-729.35,0.00024285,5]
[334524573,1723173092047,-729.35,0.00024285,5]
[334524574,1723173092057,-729.35,0.00024285,5]
[334524575,1723173092068,-729.35,0.00024285,5]
[334524576,1723173092078,-520.36637084,0.00024285,5]
[334524577,1723173092088,-1747.68,0.00024285,5]
[334524578,1723173092098,-1029.94,0.00024285,5]
[334524579,1723173092107,-728.07,0.00024285,5]
[334524580,1723173092116,-728.07,0.00024285,5]
[334524581,1723173092127,-728.07,0.00024285,5]
[334524582,1723173092138,-728.07,0.00024285,5]
[334524583,1723173092147,-959.94,0.00024285,5]
[334524584,1723173092157,-3315.04,0.00024285,5]
[334524585,1723173092166,-2164.79,0.00024285,5]
[334524586,1723173092176,-2164.79,0.00024285,5]
[334524587,1723173092185,-2164.79,0.00024285,5]
[334524588,1723173092195,-2164.79,0.00024285,5]
[334524589,1723173092205,-500.0,0.00024285,5]
[334524590,1723173092215,-2760.09,0.00024285,5]
[334524591,1723173092223,-870.98,0.00024285,5]
[334524592,1723173092233,-1735.62,0.00024285,5]
[334524593,1723173092242,-1735.62,0.00024285,5]
[334524594,1723173092251,-1735.62,0.00024285,5]
[334524595,1723173092259,-2073.19,0.00024285,5]
[334524596,1723173092268,-1735.62,0.00024285,5]
[334524597,1723173092277,-2073.19,0.00024285,5]
[334524598,1723173092286,-2073.19,0.00024285,5]
[334524599,1723173092295,-2073.19,0.00024285,5]
[334524600,1723173092304,-796.36,0.00024285,5]
[334524601,1723173092313,-2598.71,0.00024285,5]
[334524602,1723173092322,-151.0,0.00024285,2]
[334524603,1723173092331,-4419.52,0.00024285,5]
[334524604,1723173092340,-507.23,0.00024285,5]
[334524605,1723173092349,-507.23,0.00024285,5]
[334524606,1723173092358,-507.23,0.00024285,5]
[334524607,1723173092367,-507.23,0.00024285,5]
[334524608,1723173092376,-500.0,0.00024285,5]
[334524609,1723173092386,-504.04,0.00024285,5]
[334524610,1723173092395,-1623.9,0.00024285,5]
[334524611,1723173092404,-500.0,0.00024285,5]
[334524612,1723173092414,-500.0,0.00024285,5]
[334524613,1723173092423,-500.0,0.00024285,5]
[334524614,1723173092433,-500.0,0.00024285,5]
[334524615,1723173092443,-500.0,0.00024285,5]
[334524616,1723173092452,-500.0,0.00024285,5]
[334524617,1723173092462,-500.0,0.00024285,5]
[334524618,1723173092471,-500.0,0.00024285,5]
[334524619,1723173092481,-212.37507097,0.00024285,5]
[334524620,1723173092491,-500.0,0.00024285,5]
[334524621,1723173092501,-505.3577814,0.00024285,5]
[334524622,1723173092510,-500.0,0.00024285,5]
[334524623,1723173092519,-3082.71,0.00024285,5]
[334524624,1723173092529,-3082.71,0.00024285,5]
[334524625,1723173092538,-3082.71,0.00024285,5]
[334524626,1723173092547,-3082.71,0.00024285,5]
[334524627,1723173092557,-500.0,0.00024285,5]
[334524628,1723173092566,-500.0,0.00024285,5]
[334524629,1723173092576,-500.0,0.00024285,5]
[334524630,1723173092585,-356.81487991,0.00024285,5]
[334524631,1723173092595,-1742.45,0.00024285,5]
[334524632,1723173092604,-754.59,0.00024285,5]
[334524633,1723173092614,-1500.41,0.00024285,5]
[334524634,1723173092624,-931.62,0.00024285,5]
[334524635,1723173092633,-500.0,0.00024285,5]
[334524636,1723173092643,-931.62,0.00024285,5]
[334524637,1723173092653,-931.62,0.00024285,5]
[334524638,1723173092662,-931.62,0.00024285,5]
[334524639,1723173092673,-1366.36,0.00024285,5]
[334524640,1723173092683,-1366.36,0.00024285,5]
[334524641,1723173092694,-7078.41,0.00024285,5]
[334524642,1723173092703,-577.95,0.00024285,5]
[334524643,1723173092713,-1366.36,0.00024285,5]
[334524644,1723173092723,-1366.36,0.00024285,5]
[334524645,1723173092732,-500.0,0.00024285,5]
[334524646,1723173092742,-500.0,0.00024285,5]
[334524647,1723173092752,-428.95103792,0.00024285,5]
[334524648,1723173092761,-756.55,0.00024285,5]
[334524649,1723173092771,-1421.12,0.00024285,5]
[334524650,1723173092780,-1421.12,0.00024285,5]
[334524651,1723173092790,-1421.12,0.00024285,5]
[334524652,1723173092799,-1421.12,0.00024285,5]
[334524653,1723173092809,-605.71,0.00024285,5]
[334524654,1723173092819,-12292.82,0.00024285,5]
[334524655,1723173092829,-605.71,0.00024285,5]
[334524656,1723173092838,-605.71,0.00024285,5]
[334524657,1723173092848,-605.71,0.00024285,5]
[334524658,1723173092858,-501.56351925,0.00024285,5]
[334524659,1723173092867,-500.0,0.00024285,5]
[334524660,1723173092876,-307.04479511,0.00024285,5]
[334524661,1723173092886,-500.0,0.00024285,5]
[334524662,1723173092897,-569.12,0.00024285,5]
[334524663,1723173092906,-569.12,0.00024285,5]
[334524664,1723173092916,-569.12,0.00024285,5]
[334524665,1723173092926,-569.12,0.00024285,5]
[334524666,1723173092936,-500.0,0.00024285,5]
[334524667,1723173092946,-500.0,0.00024285,5]
[334524668,1723173092955,-500.0,0.00024285,5]
[334524669,1723173092965,-500.0,0.00024285,5]
[334524670,1723173092975,-500.0,0.00024285,5]
[334524671,1723173092985,-912.55,0.00024285,5]
[334524672,1723173092995,-867.19,0.00024285,5]
[334524673,1723173093004,-548.86,0.00024285,5]
[334524674,1723173093014,-3027.54,0.00024285,5]
[334524675,1723173093025,-195.655233,0.00024285,7]
[334524676,1723173093034,-195.655233,0.00024285,7]
[334524677,1723173093044,-1115.98,0.00024285,5]
[334524678,1723173093054,-2152.11,0.00024285,5]
[334524679,1723173093063,-2152.11,0.00024285,5]
[334524680,1723173093072,-2152.11,0.00024285,5]
[334524681,1723173093081,-2152.11,0.00024285,5]
[334524682,1723173093091,-500.0,0.00024285,5]
[334524683,1723173093100,-500.0,0.00024285,5]
[334524684,1723173093110,-1093.44,0.00024285,5]
[334524685,1723173093119,-500.0,0.00024285,5]
[334524686,1723173093131,-500.0,0.00024285,5]
[334524687,1723173093141,-665.69,0.00024285,5]
[334524688,1723173093150,-618.25,0.00024285,5]
[334524689,1723173093160,-618.25,0.00024285,5]
[334524690,1723173093170,-618.25,0.00024285,5]
[334524691,1723173093180,-618.25,0.00024285,5]
[334524692,1723173093190,-500.0,0.00024285,5]
[334524693,1723173093200,-500.0,0.00024285,5]
[334524694,1723173093210,-500.0,0.00024285,5]
[334524695,1723173093220,-500.0,0.00024285,5]
[334524696,1723173093229,-436.83642028,0.00024285,5]
[334524697,1723173093239,-2725.36,0.00024285,5]
[334524698,1723173093248,-539.13,0.00024285,5]
[334524699,1723173093257,-684.84,0.00024285,5]
[334524700,1723173093267,-684.84,0.00024285,5]
[334524701,1723173093277,-684.84,0.00024285,5]
[334524702,1723173093286,-684.84,0.00024285,5]
[334524703,1723173093295,-500.0,0.00024285,5]
[334524704,1723173093306,-500.0,0.00024285,5]
[334524705,1723173093315,-500.0,0.00024285,5]
[334524706,1723173093325,-500.0,0.00024285,5]
[334524707,1723173093335,-2207.94,0.00024285,5]
[334524708,1723173093344,-1090.63,0.00024285,5]
[334524709,1723173093354,-1090.63,0.00024285,5]
[334524710,1723173093365,-1090.63,0.00024285,5]
[334524711,1723173093383,-1090.63,0.00024285,5]
[334524712,1723173093394,-2483.96,0.00024285,5]
[334524713,1723173093404,-3472.19,0.00024285,5]
[334524714,1723173093414,-1834.93,0.00024285,5]
[334524715,1723173093424,-2639.38,0.00024285,5]
[334524716,1723173093434,-889.01,0.00024285,5]
[334524717,1723173093445,-889.01,0.00024285,5]
[334524718,1723173093644,-889.01,0.00024285,5]
[334524719,1723173093656,-889.01,0.00024285,5]
[334524720,1723173093666,-151.0,0.00024285,7]
[334524721,1723173093676,-12960.95,0.00024285,5]
[334524722,1723173093687,-607.9,0.00024286,5]
[334524723,1723173093702,-500.0,0.00024286,5]
[334524724,1723173093713,-500.0,0.00024286,5]
[334524725,1723173093723,-500.0,0.00024286,5]
[334524726,1723173093733,-194.72,0.00024286,5]
[334524727,1723173093742,-500.0,0.00024286,5]
[334524728,1723173093751,-500.0,0.00024286,5]
[334524729,1723173093761,-500.0,0.00024286,5]
[334524730,1723173093770,-465.77754805,0.00024286,5]
[334524731,1723173093779,-500.0,0.00024286,5]
[334524732,1723173093789,-500.0,0.00024286,5]
[334524733,1723173093799,-285.50490637,0.00024286,5]
[334524734,1723173093810,-500.0,0.00024286,5]
[334524735,1723173093820,-500.0,0.00024286,5]
[334524736,1723173093829,-500.0,0.00024286,5]
[334524737,1723173093839,-214.20482034,0.00024286,5]
[334524738,1723173093850,-2642.87,0.00024286,5]
[334524739,1723173093860,-2642.87,0.00024286,5]
[334524740,1723173093869,-2642.87,0.00024286,5]
[334524741,1723173093880,-530.96,0.00024286,5]
[334524742,1723173093890,-530.96,0.00024286,5]
[334524743,1723173093900,-530.96,0.00024286,5]
[334524744,1723173093910,-500.0,0.00024286,5]
[334524745,1723173093919,-500.0,0.00024286,5]
[334524746,1723173093929,-500.0,0.00024286,5]
[334524747,1723173093938,-500.0,0.00024286,5]
[334524748,1723173093949,-500.0,0.00024286,5]
[334524749,1723173093959,-500.0,0.00024286,5]
[334524750,1723173093968,-2144.25,0.00024286,5]
[334524751,1723173093977,-2144.25,0.00024286,5]
[334524752,1723173093986,-2144.25,0.00024286,5]
[334524753,1723173093996,-648.48512441,0.00024286,5]
[334524754,1723173094006,-500.0,0.00024286,5]
[334524755,1723173094015,-591.44201916,0.00024286,5]
[334524756,1723173094024,-150.0,0.00024289,2]
[334524757,1723173094033,-150.0,0.00024294,2]
[334524758,1723173094043,-150.0,0.00024296,2]
[334524759,1723173094054,-150.0,0.00024297,2]
[334524760,1723173094063,-2516.705938,0.000243,2]
[334524761,1723173094073,-150.0,0.00024301,2]
[334524762,1723173094083,-166.21288328,0.00024302,2]
[334524763,1723173094093,-150.0,0.00024303,2]
[334524764,1723173094103,-150.0,0.00024303,2]
[334524765,1723173094112,-150.0,0.00024305,2]
[334524766,1723173094123,-150.0,0.00024313,2]
[334524767,1723173094136,-150.0,0.00024318,2]
[334524768,1723173094146,-150.0,0.00024321,2]
[334524769,1723173094156,-150.0,0.00024326,2]
[334524770,1723173094166,-150.0,0.00024329,2]
[334524771,1723173094176,-150.0,0.0002433,2]
[334524772,1723173094187,-150.0,0.00024338,2]
[334524773,1723173094197,-150.0,0.0002434,2]
[334524774,1723173094208,-316.12016986,0.00024341,2]
[334524775,1723173094218,-150.0,0.00024342,2]
[334524776,1723173094227,-150.0,0.00024342,2]
[334524777,1723173094237,-150.0,0.00024345,2]
[334524778,1723173094247,-150.0,0.00024348,2]
[334524779,1723173094257,-3846.03189167,0.00024352,2]
[334524780,1723173094266,-150.0,0.00024353,2]
[334524781,1723173094276,-713.13,0.00024354,5]
[334524782,1723173094286,-707.7,0.00024354,5]
[334524783,1723173094296,-511.96,0.00024354,5]
[334524784,1723173094306,-1195.6,0.00024354,5]
[334524785,1723173094317,-486.56229456,0.00024354,5]
[334524786,1723173094327,-730.2,0.00024354,5]
[334524787,1723173094336,-222.866101,0.00024355,2]
[334524788,1723173094346,-7146.149072,0.00024355,2]
[334524789,1723173094356,-4288.543071,0.00024355,2]
[334524790,1723173094366,-15988.510065,0.00024355,2]
[334524791,1723173094375,-10654.310829,0.00024355,2]
[334524792,1723173094385,-8330.996884,0.00024355,2]
[334524793,1723173094395,-3569.435686,0.00024355,2]
[334524794,1723173094405,-400.286866,0.00024355,2]
[334524795,1723173094414,-150.0,0.00024355,2]
[334524796,1723173094423,-150.0,0.00024357,2]
[334524797,1723173094433,-150.0,0.00024359,2]
[334524798,1723173094443,-150.0,0.00024359,2]
[334524799,1723173094452,-150.0,0.00024359,2]
[334524800,1723173094462,-150.0,0.0002436,2]
[334524801,1723173094472,-200.57201827,0.00024373,2]
[334524802,1723173094481,-150.0,0.00024377,2]
[334524803,1723173094490,-150.0,0.00024378,2]
[334524804,1723173094500,-150.0,0.0002438,2]
[334524805,1723173094509,-150.0,0.00024386,2]
[334524806,1723173094519,-833.58,0.00024392,5]
[334524807,1723173094528,-838.22,0.00024392,5]
[334524808,1723173094538,-150.0,0.00024392,2]
[334524809,1723173094548,-713.13,0.00024392,5]
[334524810,1723173094557,-1285.69,0.00024392,5]
[334524811,1723173094567,-500.0,0.00024392,5]
[334524812,1723173094577,-707.7,0.00024392,5]
[334524813,1723173094586,-734.02,0.00024392,5]
[334524814,1723173094595,-1576.72,0.00024392,5]
[334524815,1723173094605,-2848.78,0.00024392,5]
[334524816,1723173094614,-1017.24,0.00024392,5]
[334524817,1723173094623,-500.0,0.00024392,5]
[334524818,1723173094633,-500.0,0.00024392,5]
[334524819,1723173094643,-837.62,0.00024392,5]
[334524820,1723173094652,-1900.76,0.00024392,5]
[334524821,1723173094662,-500.0,0.00024392,5]
[334524822,1723173094672,-2017.79,0.00024392,5]
[334524823,1723173094682,-619.35,0.00024392,5]
[334524824,1723173094691,-1257.11,0.00024392,5]
[334524825,1723173094701,-500.0,0.00024392,5]
[334524826,1723173094711,-2561.56,0.00024392,2]
[334524827,1723173094721,-738.8,0.00024392,5]
[334524828,1723173094731,-5908.06,0.00024392,5]
[334524829,1723173094740,-2016.95,0.00024392,5]
[334524830,1723173094750,-553.49,0.00024392,5]
[334524831,1723173094760,-500.0,0.00024392,5]
[334524832,1723173094769,-500.0,0.00024392,5]
[334524833,1723173094779,-2539.06,0.00024392,5]
[334524834,1723173094788,-1747.68,0.00024392,5]
[334524835,1723173094798,-1029.94,0.00024392,5]
[334524836,1723173094808,-959.94,0.00024392,5]
[334524837,1723173094817,-3315.04,0.00024392,5]
[334524838,1723173094827,-500.0,0.00024392,5]
[334524839,1723173094836,-2760.09,0.00024392,5]
[334524840,1723173094845,-870.98,0.00024392,5]
[334524841,1723173094855,-796.36,0.00024392,5]
[334524842,1723173094866,-2598.71,0.00024392,5]
[334524843,1723173094877,-4419.52,0.00024392,5]
[334524844,1723173094887,-500.0,0.00024392,5]
[334524845,1723173094896,-504.04,0.00024392,5]
[334524846,1723173094906,-1623.9,0.00024392,5]
[334524847,1723173094917,-500.0,0.00024392,5]
[334524848,1723173094927,-500.0,0.00024392,5]
[334524849,1723173094936,-1742.45,0.00024392,5]
[334524850,1723173094946,-754.59,0.00024392,5]
[334524851,1723173094955,-1500.41,0.00024392,5]
[334524852,1723173094964,-575.0619419,0.00024392,5]
[334524853,1723173094974,-7078.41,0.00024392,5]
[334524854,1723173094984,-577.95,0.00024392,5]
[334524855,1723173094994,-756.55,0.00024392,5]
[334524856,1723173095004,-12292.82,0.00024392,5]
[334524857,1723173095015,-500.0,0.00024392,5]
[334524858,1723173095025,-500.0,0.00024392,5]
[334524859,1723173095036,-511.96,0.00024392,5]
[334524860,1723173095047,-500.0,0.00024392,5]
[334524861,1723173095059,-867.19,0.00024392,5]
[334524862,1723173095069,-912.55,0.00024392,5]
[334524863,1723173095080,-548.86,0.00024392,5]
[334524864,1723173095091,-3027.54,0.00024392,5]
[334524865,1723173095103,-1115.98,0.00024392,5]
[334524866,1723173095113,-1195.6,0.00024392,5]
[334524867,1723173095126,-1093.44,0.00024392,5]
[334524868,1723173095139,-665.69,0.00024392,5]
[334524869,1723173095150,-500.0,0.00024392,5]
[334524870,1723173095161,-500.0,0.00024392,5]
[334524871,1723173095171,-2725.36,0.00024392,5]
[334524872,1723173095182,-539.13,0.00024392,5]
[334524873,1723173095193,-730.2,0.00024392,5]
[334524874,1723173095203,-2207.94,0.00024392,5]
[334524875,1723173095215,-2483.96,0.00024392,5]
[334524876,1723173095224,-3472.19,0.00024392,5]
[334524877,1723173095234,-1834.93,0.00024392,5]
[334524878,1723173095244,-2639.38,0.00024392,5]
[334524879,1723173095253,-12960.95,0.00024392,5]
[334524880,1723173095263,-1225.27,0.00024393,5]
[334524881,1723173095272,-500.0,0.00024393,5]
[334524882,1723173095281,-515.66,0.00024393,5]
[334524883,1723173095291,-500.0,0.00024393,5]
[334524884,1723173095301,-500.0,0.00024393,5]
[334524885,1723173095310,-739.59,0.00024393,5]
[334524886,1723173095319,-500.0,0.00024393,5]
[334524887,1723173095329,-728.64,0.00024393,5]
[334524888,1723173095338,-1126.08,0.00024393,5]
[334524889,1723173095348,-538.65,0.00024393,5]
[334524890,1723173095357,-500.0,0.00024393,2]
[334524891,1723173095367,-1208.41,0.00024393,5]
[334524892,1723173095377,-566.76,0.00024393,5]
[334524893,1723173095386,-500.0,0.00024393,5]
[334524894,1723173095396,-1083.97,0.00024393,5]
[334524895,1723173095405,-500.0,0.00024393,5]
[334524896,1723173095415,-500.0,0.00024393,5]
[334524897,1723173095424,-500.0,0.00024393,5]
[334524898,1723173095434,-633.29,0.00024393,5]
[334524899,1723173095444,-500.0,0.00024393,5]
[334524900,1723173095454,-500.0,0.00024393,5]
[334524901,1723173095463,-717.63,0.00024393,5]
[334524902,1723173095472,-703.95,0.00024393,5]
[334524903,1723173095481,-589.38,0.00024393,5]
[334524904,1723173095491,-500.0,0.00024393,5]
[334524905,1723173095500,-500.0,0.00024393,5]
[334524906,1723173095509,-575.17,0.00024393,5]